[Event "American Cup Women Champions 2024"]
[Site "Saint Louis"]
[Date "2024.03.21"]
[Round "5.3"]
[White "Lee, Alice"]
[Black "Krush, Irina"]
[Result "0-1"]
[ECO "E11"]
[WhiteElo "2356"]
[BlackElo "2421"]
[Annotator "TA"]
[PlyCount "114"]
[EventDate "2024.03.11"]
[EventType "k.o."]
[EventCountry "USA"]
[SourceTitle "playchess.com"]
[Source "ChessBase"]
[SourceQuality "1"]
[TimeControl "900+10"]

{[%evp 39,114,0,17,-26,11,0,0,14,14,7,31,16,10,-25,-24,-8,-10,-91,-91,-93,-76,-116,-120,-105,-118,-142,-142,-142,-142,-142,-142,-135,-135,-135,-133,-133,-102,-132,-132,-221,-214,-437,-268,-425,-420,-421,-387,-539,-479,-570,-558,-680,-676,-657,-649,-1284,-1133,-1081,-1210,-2079,-1826,-1950,-935,-29975,-1407,-29966,-1429,-29993,-1062,-29991,-29990,-29990,-29991,-29991,-29992,-29992,-996]} 1. d4 {[%emt 0:00:02]} Nf6 {[%emt 0:00:01]} 2. c4 {[%emt 0:00:02]} e6 {[%emt 0:00:02]} 3. Nf3 {[%emt 0:00:02]} Bb4+ {[%emt 0:00:02]} 4. Bd2 {[%emt 0:00:02]} a5 {[%emt 0:00:01]} 5. a3 {[%emt 0:00:02]} Bxd2+ {[%emt 0:00:04]} 6. Qxd2 {[%emt 0:00:02]} d5 {[%emt 0:00:03] E11: Bogo-Indian.} 7. Nc3 {[%emt 0:00:03]} O-O {[%emt 0:00:02]} 8. e3 {[%emt 0:00:04]} Nbd7 {[%emt 0:00:03]} 9. Rc1 {[%emt 0:00:07]} b6 {[%emt 0:00:38]} 10. cxd5 {[%emt 0:00:03]} exd5 {[%emt 0:00:01]} 11. Bd3 {[%emt 0:00:13]} Qe7 {[%emt 0:00:50]} 12. O-O {[%emt 0:00:31]} Bb7 {[%emt 0:00:32]} 13. Qc2 {[%emt 0:00:02]} c5 {[%emt 0:00:33]} 14. Bb5 {[%emt 0:00:03]} Rfd8 $146 {[%emt 0:00:21]} ({Predecessor:} 14... Rfc8 15. Qb3 c4 16. Qa4 Rc7 17. b3 cxb3 18. Qxb3 Rac8 19. Nd2 Ne8 {1-0 Makhnev,D (2499)-Zhalmakhanov,R (2394) KAZ-ch Nur Sultan 2021 (4)}) 15. Rfd1 {[%emt 0:00:15]} Qe6 {[%emt 0:05:39]} 16. h3 {[%emt 0:02:20]} h6 {[%emt 0:00:10]} 17. Ne2 {[%emt 0:02:04]} Rac8 {[%emt 0:03:23]} 18. Nf4 {[%emt 0:00:04]} Qe7 {[%emt 0:00:14]} 19. Qf5 {[%emt 0:03:18]} Nf8 {[%emt 0:00:20]} 20. Rc2 {[%emt 0:03:53]} Ne4 {[%emt 0:01:03]} 21. Bd3 {[%emt 0:01:03]} Nd6 {[%emt 0:02:00]} 22. Qe5 {[%emt 0:00:35]} Qxe5 {[%emt 0:00:02]} 23. dxe5 {[%emt 0:00:23]} Ne4 {[%emt 0:00:31]} 24. h4 {[%emt 0:00:36]} Ne6 {[%emt 0:00:12]} 25. Nxe6 {[%emt 0:01:43]} fxe6 {[%emt 0:00:02]} 26. Nh2 {[%emt 0:01:03]} c4 {[%emt 0:01:32]} 27. Bxe4 {[%emt 0:00:28]} dxe4 {[%emt 0:00:02]} 28. Rdc1 {[%emt 0:00:18]} (28. Rd6 $1 $11 {remains equal.}) 28... b5 $17 {[%emt 0:00:28]} 29. Nf1 {[%emt 0:00:17]} a4 {[%emt 0:00:44]} 30. Ng3 {[%emt 0:00:17]} Rc5 {[%emt 0:00:15]} 31. Ne2 {[%emt 0:00:02]} Rxe5 {[%emt 0:00:04]} 32. Nd4 {[%emt 0:00:04]} Kf7 {[%emt 0:00:09]} 33. g3 {[%emt 0:00:20]} Red5 {[%emt 0:00:08]} 34. Kg2 {[%emt 0:00:12]} e5 {[%emt 0:00:20]} 35. Ne2 {[%emt 0:00:02]} Rd2 {[%emt 0:00:12]} 36. Nc3 {[%emt 0:00:05]} Bc6 {[%emt 0:00:04]} 37. Kf1 {[%emt 0:00:18]} Ke6 {[%emt 0:00:14]} 38. Ke1 {[%emt 0:00:07]} R2d3 {[%emt 0:00:06]} 39. Na2 {[%emt 0:00:15]} (39. Kf1 $17) 39... Be8 $19 {[%emt 0:00:11]} 40. Nb4 $2 {[%emt 0:00:11]} (40. g4) 40... R3d6 {[%emt 0:00:20]} 41. Na2 {[%emt 0:00:10]} (41. g4 $142) 41... Bh5 $19 {[%emt 0:00:08]} 42. Nc3 {[%emt 0:00:02]} Bf3 {[%emt 0:00:02]} 43. Ra1 {[%emt 0:00:25]} g5 {[%emt 0:00:05]} 44. h5 {[%emt 0:00:09]} Kf5 {[%emt 0:00:15]} 45. Kf1 {[%emt 0:00:08]} Bxh5 {[%emt 0:00:14]} 46. Re1 {[%emt 0:00:09]} Rb8 {[%emt 0:00:08]} 47. Na2 {[%emt 0:00:12]} Bf3 {[%emt 0:00:05]} 48. Nc3 {[%emt 0:00:10]} h5 {[%emt 0:00:15]} 49. Nb1 {[%emt 0:00:10]} h4 {[%emt 0:00:15]} 50. Kg1 {[%emt 0:00:11]} Rh8 {[%emt 0:00:09]} (50... hxg3 $142 51. fxg3 Rh8) 51. Nd2 {[%emt 0:00:11]} g4 {[%emt 0:00:12]} (51... hxg3 $142 52. fxg3 Rh1+ 53. Kf2 Rh2+ 54. Kg1 Rdxd2 (54... Rhxd2 55. Rxd2 Rxd2 56. Kf1 Bg2+ 57. Kg1 Kg4 58. Rd1 Rxb2 59. Rd8 Kxg3 60. Rd1 c3 61. Re1 c2 62. Re2 c1=Q+ 63. Re1 Qxe1#) 55. Rxd2 Rxd2 56. Rc1 Kg4 (56... Rxb2 57. Kf1 Re2 58. Kg1 Kg4 59. Kf1 Kxg3 60. Rc3 Rd2 61. Rc1 c3 62. Ke1 Re2+ 63. Kd1 Rh2+ 64. Ke1 Rh1#) 57. Kf1 Kxg3 (57... Rxb2 58. Ke1 Kxg3 59. Rc3 Rh2 60. Rc1 g4 61. Rc3 Kh3 62. Rc1 g3 63. Rc3 Re2+ 64. Kf1 Kh2 65. Rc1 g2#) 58. Ke1 Re2+ (58... Rxb2 59. Rc3 Rg2 60. Rc1 g4 61. Rc3 Kh2 62. Rc1 g3 63. Rc3 Re2+ 64. Kd1 g2 65. Rc2 g1=Q#) 59. Kd1 Rxb2+ 60. Ke1 g4 (60... Re2+ 61. Kd1 Rf2+ 62. Ke1 Re2+ 63. Kd1 Ra2+ 64. Ke1 g4 65. Ra1 Rxa1+ 66. Kd2 Rxa3 67. Kc2 c3 68. Kc1 Be2 69. Kc2 Bd3+ 70. Kd1 Ra1#) 61. Rc3 Kh2 62. Rc1 g3 63. Rb1 Re2+ (63... Rxb1+ 64. Kd2 g2 65. Kc3 g1=Q 66. Kd2 Qc1#) 64. Kd1 g2 65. Rxb5 g1=Q#) 52. Nxf3 {[%emt 0:00:07]} gxf3 {[%emt 0:00:01]} (52... exf3 $142 53. e4+ Kg5 54. Rec1 hxg3 55. fxg3 Rh3 56. Rh2 Rxg3+ 57. Kh1 Kf4 58. Rh4 Rg2 (58... Kxe4 $2 59. Rh8 $19) 59. Rh8 Kg3 (59... Kxe4 $2 60. Ra1 $19) 60. Re1 Rdd2 (60... Rxb2 {gets mated.} 61. Rf1 c3 62. Rh7 Rbd2 63. Rh4 Kxh4 64. Kg1 c2 65. Kh1 Re2 66. Kg1 Rd1 67. Rxd1 cxd1=Q#) 61. Rh5 Rh2+ (61... Rxb2 {is a self mate.} 62. Rc1 c3 63. Rh6 Rbd2 64. Rh8 c2 65. Re1 Rd1 66. Rh3+ Kxh3 67. Rxd1 cxd1=Q#) 62. Rxh2 Rxh2+ 63. Kg1 f2+ (63... Rxb2 64. Rc1 c3 65. Kf1 Rh2 66. Kg1 c2 67. Ra1 f2+ 68. Kf1 Kf3 69. Rc1 Rh1#) 64. Kf1 Rh1+ 65. Ke2 fxe1=Q#) 53. Rf1 {[%emt 0:00:13]} Rdh6 {[%emt 0:00:08]} (53... Kg4 $142 54. b3 hxg3 (54... axb3 {leads to mate.} 55. Rcc1 hxg3 56. fxg3 Rdh6 57. Rc2 bxc2 58. a4 Rh1+ 59. Kf2 R8h2+ 60. Ke1 c1=Q#) 55. fxg3 Kxg3 (55... cxb3 56. Rc7 Rd2 57. Rg7+ Kf5 58. Rf7+ Ke6 59. R1xf3 exf3 60. Rxf3 Rhh2 61. g4 b2 62. Rf6+ Kxf6 63. g5+ Kxg5 64. Kf1 b1=Q#) (55... axb3 56. Rh2 Rxh2 57. Kxh2 b2 58. Kh1 c3 59. Kh2 c2 60. Kg1 b1=Q 61. a4) 56. bxc4 Rdh6 57. Rh2 Rxh2 58. Rxf3+ exf3 59. cxb5 Rh1#) 54. Rd2 {[%emt 0:00:06]} hxg3 {[%emt 0:00:02]} 55. fxg3 {[%emt 0:00:01]} Rh1+ {[%emt 0:00:04]} 56. Kf2 {[%emt 0:00:01]} R8h2+ {[%emt 0:00:03]} 57. Ke1 {[%emt 0:00:02]} Rxf1+ {[%emt 0:00:02]} 0-1

[Event "American Cup Women Champions 2024"]
[Site "Saint Louis"]
[Date "2024.03.21"]
[Round "5.4"]
[White "Krush, Irina"]
[Black "Lee, Alice"]
[Result "0-1"]
[ECO "E24"]
[WhiteElo "2421"]
[BlackElo "2356"]
[Annotator "RC"]
[PlyCount "48"]
[EventDate "2024.03.11"]
[EventType "k.o."]
[EventCountry "USA"]
[SourceTitle "playchess.com"]
[Source "ChessBase"]
[SourceQuality "1"]
[TimeControl "900+10"]

1. d4 {[%emt 0:00:02]} d5 {[%emt 0:00:01]} 2. c4 {[%emt 0:00:01]} e6 {[%emt 0:00:02]} 3. Nc3 {[%emt 0:00:02]} Nf6 {[%emt 0:00:01]} 4. cxd5 {[%emt 0:00:38]} exd5 {[%emt 0:00:02]} 5. Bg5 {[%emt 0:00:01]} Bb4 {[%emt 0:00:01]} 6. e3 {[%emt 0:00:05]} h6 {[%emt 0:00:01]} 7. Bxf6 {[%emt 0:00:06]} Qxf6 {[%emt 0:00:02]} 8. a3 {[%emt 0:00:01]} Bxc3+ {[%emt 0:00:03]} 9. bxc3 {[%emt 0:00:01]} O-O {[%emt 0:00:06]} 10. Bd3 {[%emt 0:00:08]} Bf5 {[%emt 0:00:02]} 11. Ne2 {[%emt 0:00:05]} Nd7 {[%emt 0:00:01]} 12. c4 {[%emt 0:01:01]} dxc4 {[%emt 0:00:15]} 13. Bxc4 {[%emt 0:01:12]} Qc6 {[%emt 0:00:05]} 14. Ng3 {[%emt 0:04:39]} Qxg2 {[%emt 0:01:15]} 15. Rc1 {[%emt 0:01:08]} Bh7 {[%emt 0:01:45]} 16. Be2 {[%emt 0:01:17]} Qd5 {[%emt 0:00:11]} 17. Bf3 {[%emt 0:01:10]} Qa5+ {[%emt 0:03:05]} 18. Qd2 {[%emt 0:00:02]} Qxa3 {[%emt 0:01:35]} 19. Bxb7 {[%emt 0:02:06]} Rab8 {[%emt 0:00:11]} 20. Bc6 {[%emt 0:00:20]} Rb2 {[%emt 0:02:12]} 21. Qc3 {[%emt 0:00:06]} Rb3 {[%emt 0:00:11]} 22. Qd2 {[%emt 0:00:22]} Rd3 {[%emt 0:00:16]} 23. Bxd7 {[%emt 0:01:39]} Rxd2 {[%emt 0:00:02]} 24. Kxd2 {[%emt 0:00:02]} Qb2+ {[%emt 0:00:05]} 0-1

[Event "American Cup Women Champions 2024"]
[Site "Saint Louis"]
[Date "2024.03.21"]
[Round "5.5"]
[White "Krush, Irina"]
[Black "Lee, Alice"]
[Result "0-1"]
[ECO "D58"]
[WhiteElo "2421"]
[BlackElo "2356"]
[Annotator "RC"]
[PlyCount "68"]
[EventDate "2024.03.11"]
[EventType "k.o."]
[EventCountry "USA"]
[SourceTitle "playchess.com"]
[Source "ChessBase"]
[SourceQuality "1"]
[TimeControl "180+2"]

1. c4 {[%emt 0:00:01]} e6 {[%emt 0:00:01]} 2. Nc3 {[%emt 0:00:01]} d5 {[%emt 0:00:01]} 3. d4 {[%emt 0:00:01]} Nf6 {[%emt 0:00:01]} 4. Bg5 {[%emt 0:00:01]} Be7 {[%emt 0:00:01]} 5. e3 {[%emt 0:00:02]} h6 {[%emt 0:00:01]} 6. Bh4 {[%emt 0:00:01]} O-O {[%emt 0:00:02]} 7. Nf3 {[%emt 0:00:02]} b6 {[%emt 0:00:00]} 8. Qc2 {[%emt 0:00:08]} Bb7 {[%emt 0:00:02]} 9. Bxf6 {[%emt 0:00:06]} Bxf6 {[%emt 0:00:02]} 10. cxd5 {[%emt 0:00:01]} exd5 {[%emt 0:00:24]} 11. Rd1 {[%emt 0:00:01]} Nc6 {[%emt 0:00:07]} 12. a3 {[%emt 0:00:19]} Re8 {[%emt 0:00:05]} 13. Be2 {[%emt 0:00:18]} Ne7 {[%emt 0:00:03]} 14. O-O {[%emt 0:00:04]} Nc8 {[%emt 0:00:20]} 15. b4 {[%emt 0:00:16]} Nd6 {[%emt 0:00:02]} 16. Qb3 {[%emt 0:00:21]} c6 {[%emt 0:00:24]} 17. b5 {[%emt 0:00:03]} Nxb5 {[%emt 0:00:09]} 18. Nxb5 {[%emt 0:00:04]} cxb5 {[%emt 0:00:02]} 19. Bxb5 {[%emt 0:00:02]} Re7 {[%emt 0:00:01]} 20. Rc1 {[%emt 0:00:14]} Rc7 {[%emt 0:00:01]} 21. Bd3 {[%emt 0:00:36]} Rac8 {[%emt 0:00:08]} 22. Qb2 {[%emt 0:00:01]} g6 {[%emt 0:00:06]} 23. Nd2 {[%emt 0:00:38]} Qd6 {[%emt 0:00:09]} 24. g3 {[%emt 0:00:04]} Be7 {[%emt 0:00:03]} 25. Nb1 {[%emt 0:00:01]} Kg7 {[%emt 0:00:11]} 26. Rfe1 {[%emt 0:00:15]} a6 {[%emt 0:00:08]} 27. a4 {[%emt 0:00:07]} Qb4 {[%emt 0:00:01]} 28. Qxb4 {[%emt 0:00:07]} Bxb4 {[%emt 0:00:01]} 29. Rxc7 {[%emt 0:00:01]} Rxc7 {[%emt 0:00:01]} 30. Rd1 {[%emt 0:00:01]} a5 {[%emt 0:00:01]} 31. Nd2 {[%emt 0:00:02]} Bc6 {[%emt 0:00:07]} 32. Rc1 {[%emt 0:00:01]} Bxd2 {[%emt 0:00:02]} 33. Rc2 {[%emt 0:00:00]} Bb4 {[%emt 0:00:09]} 34. Bb5 {[%emt 0:00:03]} Bxb5 {[%emt 0:00:01]} 0-1

[Event "American Cup Women Champions 2024"]
[Site "Saint Louis"]
[Date "2024.03.21"]
[Round "5.6"]
[White "Lee, Alice"]
[Black "Krush, Irina"]
[Result "1-0"]
[ECO "E93"]
[WhiteElo "2356"]
[BlackElo "2421"]
[Annotator "TA"]
[PlyCount "67"]
[EventDate "2024.03.11"]
[EventType "k.o."]
[EventCountry "USA"]
[SourceTitle "playchess.com"]
[Source "ChessBase"]
[SourceQuality "1"]
[TimeControl "180+2"]

{[%evp 17,67,31,31,24,70,24,38,-10,65,75,82,0,0,0,69,81,93,90,86,91,66,39,35,11,0,-235,55,0,0,0,12,1,64,58,69,0,16,-712,-705,-672,-237,-289,-300,-485,-376,-570,-503,-503,0,0,574,544]} 1. d4 {[%emt 0:00:02]} Nf6 {[%emt 0:00:01]} 2. c4 {[%emt 0:00:01]} g6 {[%emt 0:00:01]} 3. Nc3 {[%emt 0:00:00]} Bg7 {[%emt 0:00:01]} 4. e4 {[%emt 0:00:01]} d6 {[%emt 0:00:00]} 5. Nf3 {[%emt 0:00:01]} O-O {[%emt 0:00:03]} 6. Be2 {[%emt 0:00:01]} Nbd7 {[%emt 0:00:01]} 7. Be3 {[%emt 0:00:03]} e5 {[%emt 0:00:02]} 8. d5 {[%emt 0:00:03]} Ng4 {[%emt 0:00:29]} 9. Bg5 {[%emt 0:00:01]} f6 {[%emt 0:00:02]} 10. Bc1 {[%emt 0:00:04]} f5 {[%emt 0:00:04]} (10... a5 $11) 11. exf5 {[%emt 0:00:09]} ({Better is} 11. Ng5 $14) 11... gxf5 $11 {[%emt 0:00:02]} 12. Ng5 {[%emt 0:00:02]} (12. h3 $14 Nh6 13. Qc2) 12... Ndf6 {[%emt 0:00:25]} (12... Nc5 $11) 13. h3 $14 {[%emt 0:00:23]} Nh6 {[%emt 0:00:02] [#]} 14. Ne6 {[%emt 0:00:05]} (14. g4 $1 $16) 14... Bxe6 $11 {[%emt 0:00:04]} 15. dxe6 {[%emt 0:00:02] g4 would now be deadly.} c6 {[%emt 0:01:00]} (15... f4 $1 $11) 16. g4 $14 {[%emt 0:00:09] And now g5 would win. White is more active.} Ne4 {[%emt 0:00:15]} 17. Nxe4 {[%emt 0:01:04]} fxe4 {[%emt 0:00:01]} 18. Be3 {[%emt 0:00:14] [#] aiming for Qd2.} Qe7 {[%emt 0:00:02]} 19. Qc2 {[%emt 0:00:12]} Qxe6 {[%emt 0:00:36]} 20. Qxe4 {[%emt 0:00:01] Threatens to win with 0-0-0.} d5 {[%emt 0:00:01]} 21. Qc2 {[%emt 0:00:27]} (21. cxd5 $11 cxd5 22. Qd3) 21... e4 $2 {[%emt 0:00:01]} (21... d4 $19 22. Bxh6 Bxh6) 22. Rd1 {[%emt 0:00:07]} (22. O-O-O $14 Rfd8 23. cxd5 cxd5 24. Qb3) 22... Nf7 $11 {[%emt 0:00:02]} 23. cxd5 {[%emt 0:00:11]} cxd5 {[%emt 0:00:00]} 24. Qb3 {[%emt 0:00:03][%csl LRb7,LRd5]} Rfd8 {[%emt 0:00:11]} (24... Rad8 $11) 25. O-O $1 $14 {[%emt 0:00:09][%cal Od1d2]} (25. Qxb7 Rab8 (25... d4 26. Bxd4 Rdb8 27. Qa6 $16) 26. Qxa7 Rxb2 $15) 25... Ne5 {[%emt 0:00:07]} 26. Bd4 {[%emt 0:00:01]} (26. Qxb7 h5 $11) ({White should try} 26. Rd2 $14) 26... Rd7 {[%emt 0:00:06]} 27. Bb5 $2 {[%emt 0:00:04][%mdl 8192]} (27. f3 $11 exf3 28. Bxf3) 27... Nf3+ $19 {[%emt 0:00:05]} 28. Kg2 {[%emt 0:00:10]} Nxd4 $2 {[%emt 0:00:02]} (28... Bxd4 29. Bxd7 Qxd7 30. Rxd4 Nxd4) 29. Rxd4 {[%emt 0:00:02]} Bxd4 {[%emt 0:00:02]} 30. Rd1 $2 {[%emt 0:00:01]} (30. Bxd7 Qxd7 31. Rd1) 30... Qf6 {[%emt 0:00:09]} 31. Bxd7 {[%emt 0:00:05]} (31. Rxd4 $142 Rf8 32. Qe3) 31... Qxf2+ {[%emt 0:00:02]} (31... Bxb2 $2 32. Qxd5+ (32. Rxd5 Qf3+ 33. Qxf3 exf3+ 34. Kxf3 Rf8+ 35. Bf5 h6 $18) 32... Kh8 33. Qxe4 $18) 32. Kh1 {[%emt 0:00:01] White is weak on the dark squares} Rf8 $2 {[%emt 0:00:04]} (32... Bxb2 33. Qxd5+ Kh8 34. Qxe4 $11) ({Black should play} 32... Kh8 $19 {( -> ...Be5)} 33. Rxd4 Qxd4) 33. Qxd5+ $11 {[%emt 0:00:01]} (33. Qxb7 {gets mated.} Qf3+ (33... Bxb2 34. Qxd5+ Kg7 35. Qxe4 $11) 34. Kh2 Be5+ (34... Qxd1 35. Qxd5+ Kg7 36. Qxd4+ Qxd4 37. g5 Qxd7 38. h4 Qg4 39. b4 Rf2+ 40. Kh1 Qg2#) 35. Kg1 Qxd1+ 36. Kg2 Qf1#) 33... Kh8 $2 {[%emt 0:00:01][%mdl 8192]} (33... Rf7 $11 {and Black stays safe.} 34. Qxd4 Qf3+ 35. Kh2 Qf4+ 36. Kh1 Qf3+ 37. Kg1 (37. Kh2 Qf4+ 38. Kh1 Qf3+ $11) 37... Rxd7 38. Qxd7 Qe3+ 39. Kh2 Qf4+ 40. Kh1 Qf3+ 41. Kg1 Qg3+ 42. Kf1 Qf3+ 43. Kg1) 34. Qxd4+ {[%emt 0:00:02] Quite a comeback for White.   Weighted Error Value: White=0.81/Black=1.19.  Loses game:     	White=2     	Black=1      Missed win:     	---       	Black=2      Mistake:       	White=7     	Black=4      Inaccurate:     	White=1     	---        OK:         	White=5     	Black=3      Best:        	White=1     	Black=5      Strong:       	White=1     	---} (34. Rxd4 $2 {is a self mate.} Qf3+ (34... Qxb2 35. Qe5+ Kg8 36. Be6+ Rf7 37. Rd8#) 35. Kg1 Qg3+ 36. Kh1 Rf1#) 1-0